[Event "Late-Titled-Tuesday-Blitz-March-26-2024"]
[Site "Chess.com"]
[Date "2024.03.26"]
[Round "8"]
[White "The_Straightforward_Rook"]
[Black "santosalberto1987"]
[Result "1-0"]
[WhiteElo "2395"]
[BlackElo "2507"]
[TimeControl "180+1"]
[EndTime "15:27:52 PDT"]
[Termination "The_Straightforward_Rook won by resignation"]

1. Nf3 {[%clk 0:02:54.1]} 1... Nf6 {[%clk 0:02:53.1]} 2. c4 {[%clk 0:02:51.9]}
2... g6 {[%clk 0:02:52.7]} 3. d4 {[%clk 0:02:49.2]} 3... d6 {[%clk 0:02:52.9]}
4. e3 {[%clk 0:02:49.2]} 4... Bg7 {[%clk 0:02:50.6]} 5. Be2 {[%clk 0:02:49.3]}
5... O-O {[%clk 0:02:50.4]} 6. Nc3 {[%clk 0:02:49.9]} 6... c5 {[%clk 0:02:50.5]}
7. O-O {[%clk 0:02:48.8]} 7... b6 {[%clk 0:02:49.8]} 8. d5 {[%clk 0:02:43]} 8...
e6 {[%clk 0:02:44.9]} 9. e4 {[%clk 0:02:38.8]} 9... exd5 {[%clk 0:02:44.2]} 10.
exd5 {[%clk 0:02:39.1]} 10... Bg4 {[%clk 0:02:42]} 11. Bf4 {[%clk 0:02:34.6]}
11... a6 {[%clk 0:02:39.4]} 12. h3 {[%clk 0:02:31.3]} 12... Bxf3 {[%clk
0:02:39.3]} 13. Bxf3 {[%clk 0:02:32.2]} 13... Qc7 {[%clk 0:02:39.8]} 14. a4
{[%clk 0:02:28.9]} 14... Nbd7 {[%clk 0:02:39.1]} 15. Re1 {[%clk 0:02:27.3]}
15... Rfe8 {[%clk 0:02:39.1]} 16. Qc2 {[%clk 0:02:23.3]} 16... Rxe1+ {[%clk
0:02:35.3]} 17. Rxe1 {[%clk 0:02:22.7]} 17... Re8 {[%clk 0:02:36.2]} 18. Rxe8+
{[%clk 0:02:22.4]} 18... Nxe8 {[%clk 0:02:37.1]} 19. Qe4 {[%clk 0:02:16.1]}
19... Ne5 {[%clk 0:02:36.3]} 20. Be2 {[%clk 0:02:04.6]} 20... Nf6 {[%clk
0:02:35.4]} 21. Qe3 {[%clk 0:01:56.4]} 21... Qd8 {[%clk 0:02:09]} 22. Bxe5
{[%clk 0:01:55]} 22... dxe5 {[%clk 0:02:09.1]} 23. Qxe5 {[%clk 0:01:54.5]} 23...
Ne8 {[%clk 0:02:06]} 24. Qe3 {[%clk 0:01:50.1]} 24... Nd6 {[%clk 0:02:05.5]} 25.
b3 {[%clk 0:01:44.6]} 25... h5 {[%clk 0:02:01.7]} 26. Ne4 {[%clk 0:01:40.5]}
26... Nxe4 {[%clk 0:01:57.3]} 27. Qxe4 {[%clk 0:01:40]} 27... Qd6 {[%clk
0:01:57.9]} 28. Qe8+ {[%clk 0:01:35]} 28... Bf8 {[%clk 0:01:56.1]} 29. Bf3
{[%clk 0:01:29.3]} 29... a5 {[%clk 0:01:54.5]} 30. Kf1 {[%clk 0:01:20.5]} 30...
Kg7 {[%clk 0:01:53.2]} 31. g3 {[%clk 0:01:11.3]} 31... Qe7 {[%clk 0:01:44.2]}
32. Qc6 {[%clk 0:01:05.2]} 32... Qf6 {[%clk 0:01:35.2]} 33. Qxf6+ {[%clk
0:00:51]} 33... Kxf6 {[%clk 0:01:34.9]} 34. Ke2 {[%clk 0:00:51.9]} 34... Ke5
{[%clk 0:01:34]} 35. Kd3 {[%clk 0:00:50.6]} 35... h4 {[%clk 0:01:32.2]} 36. gxh4
{[%clk 0:00:47.9]} 36... Kf4 {[%clk 0:01:32.2]} 37. Be2 {[%clk 0:00:42.2]} 37...
Be7 {[%clk 0:01:31.7]} 38. h5 {[%clk 0:00:41.7]} 38... gxh5 {[%clk 0:01:31.9]}
39. Bxh5 {[%clk 0:00:41.7]} 39... f6 {[%clk 0:01:32.4]} 40. Be2 {[%clk
0:00:34.9]} 40... f5 {[%clk 0:01:27.5]} 41. Bh5 {[%clk 0:00:34.3]} 41... Bf8
{[%clk 0:01:25.9]} 42. Bf7 {[%clk 0:00:30.8]} 42... Be7 {[%clk 0:01:25.8]} 43.
Bg6 {[%clk 0:00:31.5]} 43... Kg5 {[%clk 0:01:25.1]} 44. Bh7 {[%clk 0:00:28.6]}
44... Kf4 {[%clk 0:01:25.1]} 45. Bg8 {[%clk 0:00:28]} 45... Bf6 {[%clk
0:01:21.8]} 46. d6 {[%clk 0:00:25.5]} 46... Ke5 {[%clk 0:01:21.2]} 47. d7 {[%clk
0:00:20.6]} 47... Kd6 {[%clk 0:01:21.3]} 48. Bh7 {[%clk 0:00:20.8]} 48... Kxd7
{[%clk 0:01:19.8]} 49. Bxf5+ {[%clk 0:00:20.9]} 49... Kd6 {[%clk 0:01:19.2]} 50.
Ke4 {[%clk 0:00:21]} 50... Ke7 {[%clk 0:01:19.5]} 51. Bc8 {[%clk 0:00:19.9]}
51... Kf7 {[%clk 0:01:19.3]} 52. Kf5 {[%clk 0:00:20.1]} 52... Kg7 {[%clk
0:01:19.3]} 53. f4 {[%clk 0:00:19.6]} 53... Bc3 {[%clk 0:01:19]} 54. h4 {[%clk
0:00:18.5]} 54... Bd4 {[%clk 0:01:17]} 55. h5 {[%clk 0:00:18.7]} 55... Bf6
{[%clk 0:01:14.6]} 56. Ke6 {[%clk 0:00:18.6]} 56... Bd4 {[%clk 0:01:14.1]} 57.
Bd7 {[%clk 0:00:17.3]} 57... Bc3 {[%clk 0:01:14.2]} 58. Be8 {[%clk 0:00:17.1]}
58... Bd4 {[%clk 0:01:14.4]} 59. Bg6 {[%clk 0:00:17.2]} 59... Bc3 {[%clk
0:01:14.5]} 60. Kd5 {[%clk 0:00:17.2]} 60... Bd4 {[%clk 0:01:14.7]} 61. Kc6
{[%clk 0:00:17.5]} 61... Bc3 {[%clk 0:01:10.1]} 62. Kxb6 {[%clk 0:00:17.7]}
62... Bb4 {[%clk 0:01:10.1]} 63. f5 {[%clk 0:00:16.9]} 63... Kf6 {[%clk
0:01:06.6]} 64. h6 {[%clk 0:00:16.5]} 1-0

[Event "Late-Titled-Tuesday-Blitz-March-26-2024"]
[Site "Chess.com"]
[Date "2024.03.26"]
[Round "8"]
[White "azikom"]
[Black "carloseduar100"]
[Result "1-0"]
[WhiteElo "2617"]
[BlackElo "2250"]
[TimeControl "180+1"]
[EndTime "15:27:53 PDT"]
[Termination "azikom won by checkmate"]

1. c4 {[%clk 0:02:59.9]} 1... Nf6 {[%clk 0:02:59]} 2. Nc3 {[%clk 0:02:59.6]}
2... g6 {[%clk 0:02:59]} 3. e4 {[%clk 0:03:00]} 3... d6 {[%clk 0:02:58.5]} 4. d4
{[%clk 0:03:00.4]} 4... Bg7 {[%clk 0:02:58.5]} 5. Bg5 {[%clk 0:03:01]} 5... O-O
{[%clk 0:02:58.8]} 6. f3 {[%clk 0:03:00.4]} 6... c5 {[%clk 0:02:59]} 7. d5
{[%clk 0:03:00.4]} 7... a6 {[%clk 0:02:59]} 8. a4 {[%clk 0:02:56.8]} 8... a5
{[%clk 0:02:58.6]} 9. Nge2 {[%clk 0:02:53.1]} 9... Na6 {[%clk 0:02:58.2]} 10.
Ng3 {[%clk 0:02:53.4]} 10... Nb4 {[%clk 0:02:57.8]} 11. Be2 {[%clk 0:02:53.9]}
11... e6 {[%clk 0:02:57.5]} 12. O-O {[%clk 0:02:53.1]} 12... exd5 {[%clk
0:02:57.8]} 13. cxd5 {[%clk 0:02:53.4]} 13... Re8 {[%clk 0:02:52.5]} 14. Qd2
{[%clk 0:02:53.7]} 14... Qb6 {[%clk 0:02:44.3]} 15. Kh1 {[%clk 0:02:52.9]} 15...
Bd7 {[%clk 0:02:43.4]} 16. Bb5 {[%clk 0:02:48.5]} 16... Rad8 {[%clk 0:02:41.8]}
17. Bxd7 {[%clk 0:02:46.6]} 17... Rxd7 {[%clk 0:02:42]} 18. Nb5 {[%clk
0:02:33.4]} 18... c4 {[%clk 0:02:21]} 19. Be3 {[%clk 0:02:31.9]} 19... Qd8
{[%clk 0:02:14.5]} 20. Rac1 {[%clk 0:02:24.5]} 20... Rde7 {[%clk 0:01:46.5]} 21.
Bd4 {[%clk 0:02:17.8]} 21... Re5 {[%clk 0:00:44.3]} 22. Rxc4 {[%clk 0:02:14.7]}
22... Nh5 {[%clk 0:00:42]} 23. Bxe5 {[%clk 0:02:09.7]} 23... Rxe5 {[%clk
0:00:40.4]} 24. Nxh5 {[%clk 0:02:06.6]} 24... Rxh5 {[%clk 0:00:40.5]} 25. g3
{[%clk 0:01:54.6]} 25... h6 {[%clk 0:00:35.6]} 26. Rfc1 {[%clk 0:01:47.8]} 26...
Qf6 {[%clk 0:00:28.6]} 27. Qe2 {[%clk 0:01:33.8]} 27... Kh7 {[%clk 0:00:19.3]}
28. Kg2 {[%clk 0:01:33.2]} 28... g5 {[%clk 0:00:19.6]} 29. Rc7 {[%clk 0:01:29]}
29... Kg6 {[%clk 0:00:15.5]} 30. Rxb7 {[%clk 0:01:24.7]} 30... Qd4 {[%clk
0:00:11.1]} 31. Rd1 {[%clk 0:01:13.5]} 31... Qc5 {[%clk 0:00:09.1]} 32. Rc7
{[%clk 0:01:13]} 32... Qb6 {[%clk 0:00:09.1]} 33. Rdc1 {[%clk 0:00:59.4]} 33...
Qb8 {[%clk 0:00:08.8]} 34. Rd7 {[%clk 0:00:53.4]} 34... Be5 {[%clk 0:00:09.1]}
35. Rcc7 {[%clk 0:00:43.8]} 35... Qg8 {[%clk 0:00:09.5]} 36. Nxd6 {[%clk
0:00:36.2]} 36... Bxd6 {[%clk 0:00:08.5]} 37. Rxd6+ {[%clk 0:00:35.9]} 37... f6
{[%clk 0:00:09.4]} 38. Rdd7 {[%clk 0:00:35.2]} 38... g4 {[%clk 0:00:07.4]} 39.
f4 {[%clk 0:00:32.8]} 39... Rh3 {[%clk 0:00:06.7]} 40. Qxg4# {[%clk 0:00:31.8]}
1-0

[Event "Late-Titled-Tuesday-Blitz-March-26-2024"]
[Site "Chess.com"]
[Date "2024.03.26"]
[Round "8"]
[White "RandomNoob04"]
[Black "HajiyevKanan"]
[Result "0-1"]
[WhiteElo "2663"]
[BlackElo "2560"]
[TimeControl "180+1"]
[EndTime "15:28:07 PDT"]
[Termination "HajiyevKanan won on time"]

1. e4 {[%clk 0:03:00.9]} 1... c6 {[%clk 0:02:59.4]} 2. d4 {[%clk 0:03:00.8]}
2... d5 {[%clk 0:03:00.3]} 3. Nc3 {[%clk 0:03:01.5]} 3... a6 {[%clk 0:03:00.7]}
4. Nf3 {[%clk 0:02:57.7]} 4... Bg4 {[%clk 0:02:59.7]} 5. h3 {[%clk 0:02:53.9]}
5... Bh5 {[%clk 0:02:59.8]} 6. exd5 {[%clk 0:02:52.2]} 6... cxd5 {[%clk
0:03:00.7]} 7. g4 {[%clk 0:02:47.9]} 7... Bg6 {[%clk 0:03:01]} 8. Ne5 {[%clk
0:02:48.6]} 8... Nc6 {[%clk 0:03:01.5]} 9. Bg2 {[%clk 0:02:44.9]} 9... Nxe5
{[%clk 0:02:58.4]} 10. dxe5 {[%clk 0:02:44.6]} 10... e6 {[%clk 0:02:58.9]} 11.
O-O {[%clk 0:02:42.8]} 11... Bc5 {[%clk 0:02:52]} 12. Kh1 {[%clk 0:02:42.6]}
12... h5 {[%clk 0:02:48.1]} 13. g5 {[%clk 0:02:39.5]} 13... Ne7 {[%clk
0:02:44.2]} 14. Ne2 {[%clk 0:02:39.7]} 14... Nf5 {[%clk 0:02:42.1]} 15. Nf4
{[%clk 0:02:39.6]} 15... Qc7 {[%clk 0:02:24.4]} 16. c4 {[%clk 0:01:55]} 16...
dxc4 {[%clk 0:02:05.7]} 17. Qe2 {[%clk 0:01:54.6]} 17... O-O {[%clk 0:01:54.7]}
18. Nxg6 {[%clk 0:01:47.4]} 18... fxg6 {[%clk 0:01:50.2]} 19. Qxc4 {[%clk
0:01:48]} 19... Qxe5 {[%clk 0:01:31.5]} 20. Bf4 {[%clk 0:01:36.2]} 20... Qd4
{[%clk 0:01:26.2]} 21. Rac1 {[%clk 0:01:26.8]} 21... Kh7 {[%clk 0:01:03.9]} 22.
Qxd4 {[%clk 0:01:09.7]} 22... Bxd4 {[%clk 0:01:03.1]} 23. Bxb7 {[%clk
0:01:10.6]} 23... Rad8 {[%clk 0:00:53.1]} 24. b3 {[%clk 0:01:07.7]} 24... e5
{[%clk 0:00:51.3]} 25. Bd2 {[%clk 0:01:03.9]} 25... Rd7 {[%clk 0:00:41.4]} 26.
Bxa6 {[%clk 0:00:38]} 26... Ra7 {[%clk 0:00:40.7]} 27. Rc6 {[%clk 0:00:37.9]}
27... Ng3+ {[%clk 0:00:39.9]} 28. fxg3 {[%clk 0:00:36.4]} 28... Rxa6 {[%clk
0:00:40.5]} 29. Rxf8 {[%clk 0:00:30.5]} 29... Rxc6 {[%clk 0:00:40]} 30. Rf3
{[%clk 0:00:06]} 30... Rc2 {[%clk 0:00:39.1]} 31. Be3 {[%clk 0:00:06.6]} 31...
Rc3 {[%clk 0:00:27]} 32. Bxd4 {[%clk 0:00:07.1]} 32... Rxf3 {[%clk 0:00:27.3]}
33. Bxe5 {[%clk 0:00:07.7]} 33... Re3 {[%clk 0:00:21.7]} 34. Bf4 {[%clk
0:00:07.6]} 34... Re1+ {[%clk 0:00:21.7]} 35. Kg2 {[%clk 0:00:06.6]} 35... Re2+
{[%clk 0:00:22.6]} 36. Kf3 {[%clk 0:00:06.4]} 36... Rxa2 {[%clk 0:00:23.5]} 37.
b4 {[%clk 0:00:06.4]} 37... Rb2 {[%clk 0:00:23.9]} 38. Bd6 {[%clk 0:00:06]}
38... Kg8 {[%clk 0:00:23.8]} 39. Ke4 {[%clk 0:00:05.1]} 39... Kf7 {[%clk
0:00:24]} 40. Kd5 {[%clk 0:00:05.7]} 40... Ke8 {[%clk 0:00:17.7]} 41. Kc6 {[%clk
0:00:04.8]} 41... Rc2+ {[%clk 0:00:17.7]} 42. Kb6 {[%clk 0:00:01.8]} 42... Kd7
{[%clk 0:00:17.5]} 43. Bc5 {[%clk 0:00:02]} 43... Rc3 {[%clk 0:00:15.9]} 0-1

[Event "Late-Titled-Tuesday-Blitz-March-26-2024"]
[Site "Chess.com"]
[Date "2024.03.26"]
[Round "8"]
[White "Polish_fighter3000"]
[Black "GHANDEEVAM2003"]
[Result "1-0"]
[WhiteElo "3129"]
[BlackElo "3046"]
[TimeControl "180+1"]
[EndTime "15:28:10 PDT"]
[Termination "Polish_fighter3000 won by resignation"]

1. Nf3 {[%clk 0:03:00.9]} 1... Nf6 {[%clk 0:02:59.9]} 2. c4 {[%clk 0:03:00.2]}
2... b6 {[%clk 0:03:00]} 3. g3 {[%clk 0:02:58.6]} 3... Bb7 {[%clk 0:03:00]} 4.
Bg2 {[%clk 0:02:59.2]} 4... g6 {[%clk 0:03:00.2]} 5. d4 {[%clk 0:02:58.4]} 5...
Bg7 {[%clk 0:03:00]} 6. O-O {[%clk 0:02:56.7]} 6... O-O {[%clk 0:03:00.6]} 7.
Qc2 {[%clk 0:02:48.4]} 7... Na6 {[%clk 0:02:40.9]} 8. Nc3 {[%clk 0:02:46.2]}
8... Nb4 {[%clk 0:02:33]} 9. Qa4 {[%clk 0:02:37.8]} 9... a5 {[%clk 0:02:31.4]}
10. a3 {[%clk 0:02:35.5]} 10... Ne4 {[%clk 0:02:24]} 11. Bf4 {[%clk 0:01:57.1]}
11... Nxc3 {[%clk 0:02:06.3]} 12. bxc3 {[%clk 0:01:58]} 12... Nc6 {[%clk
0:02:07]} 13. e4 {[%clk 0:01:57.5]} 13... d6 {[%clk 0:02:03]} 14. Rab1 {[%clk
0:01:54.4]} 14... e5 {[%clk 0:02:01.1]} 15. Bg5 {[%clk 0:01:54.1]} 15... Qe8
{[%clk 0:01:58.2]} 16. Qd1 {[%clk 0:01:44.4]} 16... exd4 {[%clk 0:01:51.3]} 17.
cxd4 {[%clk 0:01:45.3]} 17... Qxe4 {[%clk 0:01:51]} 18. Ne5 {[%clk 0:01:16.9]}
18... Qxg2+ {[%clk 0:01:49.7]} 19. Kxg2 {[%clk 0:01:16.6]} 19... Nxd4+ {[%clk
0:01:50.6]} 20. Nc6 {[%clk 0:00:35.7]} 20... Bxc6+ {[%clk 0:01:50.2]} 21. f3
{[%clk 0:00:35.9]} 21... Rfe8 {[%clk 0:01:50.1]} 22. Rf2 {[%clk 0:00:35.2]}
22... Re6 {[%clk 0:01:37.3]} 23. Qd3 {[%clk 0:00:26.5]} 23... Rae8 {[%clk
0:01:37.4]} 24. Rbf1 {[%clk 0:00:26.1]} 24... Re2 {[%clk 0:01:18.3]} 25. Rxe2
{[%clk 0:00:16.9]} 25... Rxe2+ {[%clk 0:01:19.2]} 26. Kg1 {[%clk 0:00:17]} 26...
Ba4 {[%clk 0:01:08.9]} 27. Rf2 {[%clk 0:00:09.2]} 27... Re1+ {[%clk 0:00:48.7]}
28. Kg2 {[%clk 0:00:09.2]} 28... h6 {[%clk 0:00:45.6]} 29. Be3 {[%clk 0:00:06]}
29... Nf5 {[%clk 0:00:34.7]} 30. Bd2 {[%clk 0:00:05.4]} 30... Rd1 {[%clk
0:00:32.8]} 31. Rf1 {[%clk 0:00:02.9]} 31... Nd4 {[%clk 0:00:30.9]} 32. Rxd1
{[%clk 0:00:02.3]} 32... Bxd1 {[%clk 0:00:31.8]} 33. Be3 {[%clk 0:00:02.6]}
33... Bxf3+ {[%clk 0:00:12.1]} 34. Kf2 {[%clk 0:00:03.2]} 34... Be2 {[%clk
0:00:12.8]} 35. Qd2 {[%clk 0:00:03.4]} 1-0

[Event "Late-Titled-Tuesday-Blitz-March-26-2024"]
[Site "Chess.com"]
[Date "2024.03.26"]
[Round "8"]
[White "ChessSwole"]
[Black "ExtremeLearner"]
[Result "0-1"]
[WhiteElo "2665"]
[BlackElo "2561"]
[TimeControl "180+1"]
[EndTime "15:28:10 PDT"]
[Termination "ExtremeLearner won by resignation"]

1. d4 {[%clk 0:03:00.9]} 1... Nf6 {[%clk 0:02:59.9]} 2. c4 {[%clk 0:03:01.3]}
2... c5 {[%clk 0:02:59.6]} 3. Nf3 {[%clk 0:03:00.3]} 3... cxd4 {[%clk
0:02:58.3]} 4. Nxd4 {[%clk 0:03:01.2]} 4... Nc6 {[%clk 0:02:58.2]} 5. g3 {[%clk
0:02:57.9]} 5... g6 {[%clk 0:02:55.5]} 6. Bg2 {[%clk 0:02:57.7]} 6... Bg7 {[%clk
0:02:54.5]} 7. O-O {[%clk 0:02:57.4]} 7... O-O {[%clk 0:02:54.8]} 8. Nc3 {[%clk
0:02:51.5]} 8... Qa5 {[%clk 0:02:48.3]} 9. Nb3 {[%clk 0:02:28.5]} 9... Qh5
{[%clk 0:02:46.2]} 10. e4 {[%clk 0:02:27.5]} 10... Qxd1 {[%clk 0:02:06.9]} 11.
Rxd1 {[%clk 0:02:28.4]} 11... d6 {[%clk 0:02:04]} 12. Nd5 {[%clk 0:02:15.7]}
12... Bg4 {[%clk 0:01:27.7]} 13. f3 {[%clk 0:02:08.9]} 13... Be6 {[%clk
0:01:26.1]} 14. Be3 {[%clk 0:01:59.6]} 14... Rfc8 {[%clk 0:01:18.9]} 15. Rac1
{[%clk 0:01:57.9]} 15... Kf8 {[%clk 0:01:18.5]} 16. Bf1 {[%clk 0:01:51.9]} 16...
b6 {[%clk 0:01:14.8]} 17. Kf2 {[%clk 0:01:45.2]} 17... h5 {[%clk 0:01:12.7]} 18.
Bg5 {[%clk 0:01:35.9]} 18... Nd7 {[%clk 0:01:11.4]} 19. Nf4 {[%clk 0:01:20.2]}
19... Bxb2 {[%clk 0:01:06.9]} 20. Rc2 {[%clk 0:01:16.8]} 20... Bf6 {[%clk
0:00:58.3]} 21. Nxe6+ {[%clk 0:01:16.1]} 21... fxe6 {[%clk 0:00:58.4]} 22. Be3
{[%clk 0:01:13.1]} 22... Kf7 {[%clk 0:00:55.5]} 23. a4 {[%clk 0:01:07.3]} 23...
Nc5 {[%clk 0:00:55.1]} 24. Nxc5 {[%clk 0:01:01.1]} 24... bxc5 {[%clk 0:00:55.1]}
25. Rb1 {[%clk 0:00:59.5]} 25... Rab8 {[%clk 0:00:54.4]} 26. Rb5 {[%clk
0:00:59.5]} 26... a6 {[%clk 0:00:52.7]} 27. Rxb8 {[%clk 0:00:57.6]} 27... Rxb8
{[%clk 0:00:53.6]} 28. Be2 {[%clk 0:00:48.8]} 28... Rb4 {[%clk 0:00:48.8]} 29.
Ra2 {[%clk 0:00:48.5]} 29... Bd4 {[%clk 0:00:45.1]} 30. f4 {[%clk 0:00:46]}
30... Na5 {[%clk 0:00:40.5]} 31. f5 {[%clk 0:00:36.5]} 31... Bxe3+ {[%clk
0:00:36.4]} 32. Kxe3 {[%clk 0:00:36.7]} 32... Nxc4+ {[%clk 0:00:37]} 33. Bxc4
{[%clk 0:00:37]} 33... Rxc4 {[%clk 0:00:37.9]} 34. fxg6+ {[%clk 0:00:31.5]}
34... Kxg6 {[%clk 0:00:38.8]} 35. h4 {[%clk 0:00:32]} 35... Rc3+ {[%clk
0:00:36.5]} 36. Kf2 {[%clk 0:00:30.5]} 36... Kf6 {[%clk 0:00:36.4]} 37. Rb2
{[%clk 0:00:30]} 37... Ra3 {[%clk 0:00:33.7]} 38. Rb8 {[%clk 0:00:29.4]} 38...
Rxa4 {[%clk 0:00:33.8]} 39. Rh8 {[%clk 0:00:30.1]} 39... Rxe4 {[%clk 0:00:32.4]}
40. Rxh5 {[%clk 0:00:30.4]} 40... a5 {[%clk 0:00:29.9]} 41. Kf3 {[%clk 0:00:31]}
41... Rb4 {[%clk 0:00:29.7]} 42. g4 {[%clk 0:00:31]} 42... a4 {[%clk 0:00:29.1]}
43. g5+ {[%clk 0:00:31.5]} 43... Kg7 {[%clk 0:00:29]} 44. Rh6 {[%clk 0:00:30]}
44... a3 {[%clk 0:00:28.9]} 45. Rxe6 {[%clk 0:00:30.1]} 45... Kf7 {[%clk
0:00:23.4]} 46. Re2 {[%clk 0:00:20.5]} 46... Rxh4 {[%clk 0:00:21.9]} 47. Ra2
{[%clk 0:00:21.1]} 47... Ra4 {[%clk 0:00:19.7]} 48. Ke3 {[%clk 0:00:21.6]} 48...
Kg6 {[%clk 0:00:18.5]} 49. Kd3 {[%clk 0:00:20.3]} 49... e5 {[%clk 0:00:18]} 0-1

[Event "Late-Titled-Tuesday-Blitz-March-26-2024"]
[Site "Chess.com"]
[Date "2024.03.26"]
[Round "8"]
[White "CMmauricio"]
[Black "Brahianzevich"]
[Result "0-1"]
[WhiteElo "2752"]
[BlackElo "2521"]
[TimeControl "180+1"]
[EndTime "15:28:12 PDT"]
[Termination "Brahianzevich won by resignation"]

1. d4 {[%clk 0:02:57.8]} 1... Nf6 {[%clk 0:02:58.8]} 2. e3 {[%clk 0:02:56.9]}
2... g6 {[%clk 0:02:58.7]} 3. f4 {[%clk 0:02:57.8]} 3... Bg7 {[%clk 0:02:58.6]}
4. Nf3 {[%clk 0:02:58.7]} 4... d5 {[%clk 0:02:58.5]} 5. c3 {[%clk 0:02:59.5]}
5... c5 {[%clk 0:02:59.2]} 6. Bd3 {[%clk 0:02:59]} 6... Nc6 {[%clk 0:02:57.2]}
7. Nbd2 {[%clk 0:02:57.4]} 7... O-O {[%clk 0:02:53.1]} 8. O-O {[%clk 0:02:57.3]}
8... Qc7 {[%clk 0:02:53.3]} 9. Ne5 {[%clk 0:02:57.4]} 9... Be6 {[%clk
0:02:52.5]} 10. Qe1 {[%clk 0:02:57.3]} 10... Ne8 {[%clk 0:02:48.1]} 11. Qh4
{[%clk 0:02:56.3]} 11... Nd6 {[%clk 0:02:46.6]} 12. Ndf3 {[%clk 0:02:55.6]}
12... Bf5 {[%clk 0:02:45.3]} 13. Be2 {[%clk 0:02:38.9]} 13... c4 {[%clk
0:02:40.7]} 14. g4 {[%clk 0:02:39.1]} 14... Be4 {[%clk 0:02:38.4]} 15. Ng5
{[%clk 0:02:39.6]} 15... h6 {[%clk 0:02:37.5]} 16. Nxe4 {[%clk 0:02:37.6]} 16...
Nxe4 {[%clk 0:02:37.9]} 17. Bf3 {[%clk 0:02:32.9]} 17... Nxe5 {[%clk 0:02:35.8]}
18. fxe5 {[%clk 0:02:32.4]} 18... g5 {[%clk 0:02:32.4]} 19. Qh3 {[%clk
0:02:30.5]} 19... Qc6 {[%clk 0:02:30.7]} 20. Bxe4 {[%clk 0:02:25.5]} 20... dxe4
{[%clk 0:02:30.9]} 21. Bd2 {[%clk 0:02:18.8]} 21... a5 {[%clk 0:02:28.3]} 22.
Rf5 {[%clk 0:02:13.4]} 22... f6 {[%clk 0:02:25.5]} 23. exf6 {[%clk 0:02:12.2]}
23... Rxf6 {[%clk 0:02:26.1]} 24. Raf1 {[%clk 0:02:12.5]} 24... Qa4 {[%clk
0:02:23.1]} 25. a3 {[%clk 0:02:08.5]} 25... Qc6 {[%clk 0:02:22.4]} 26. Be1
{[%clk 0:02:06.2]} 26... Raf8 {[%clk 0:02:20.3]} 27. Bg3 {[%clk 0:02:06.5]}
27... Kh7 {[%clk 0:02:16.6]} 28. R1f2 {[%clk 0:01:49.6]} 28... Rxf5 {[%clk
0:02:12.5]} 29. gxf5 {[%clk 0:01:49.6]} 29... Bf6 {[%clk 0:02:11.7]} 30. Qh5
{[%clk 0:01:47]} 30... Rg8 {[%clk 0:02:10.1]} 31. Be5 {[%clk 0:01:45.8]} 31...
Rg7 {[%clk 0:02:06.3]} 32. Bxf6 {[%clk 0:01:43.3]} 32... exf6 {[%clk 0:02:03.1]}
33. h4 {[%clk 0:01:43.8]} 33... Qb5 {[%clk 0:01:50.3]} 34. Kh2 {[%clk
0:01:32.6]} 34... Qd7 {[%clk 0:01:46.4]} 35. Qg4 {[%clk 0:01:29.6]} 35... Qd6+
{[%clk 0:01:44]} 36. Kh1 {[%clk 0:01:27.3]} 36... gxh4 {[%clk 0:01:42.8]} 37.
Qxh4 {[%clk 0:01:22.6]} 37... Qg3 {[%clk 0:01:42.8]} 38. Qxg3 {[%clk 0:01:15.8]}
38... Rxg3 {[%clk 0:01:43.7]} 39. Re2 {[%clk 0:01:14.8]} 39... Rf3 {[%clk
0:01:42.7]} 40. d5 {[%clk 0:01:09.7]} 40... Kg7 {[%clk 0:01:40.6]} 41. d6 {[%clk
0:01:07.5]} 41... Kf7 {[%clk 0:01:39.5]} 42. d7 {[%clk 0:01:07.8]} 42... Ke7
{[%clk 0:01:39.2]} 43. Rd2 {[%clk 0:01:06.3]} 43... Kd8 {[%clk 0:01:39.2]} 44.
Rd4 {[%clk 0:01:03.6]} 44... Rxe3 {[%clk 0:01:36.9]} 45. Rxc4 {[%clk 0:01:04.1]}
45... Kxd7 {[%clk 0:01:36.7]} 46. Kg2 {[%clk 0:01:04]} 46... Kd6 {[%clk
0:01:29.7]} 47. Kf2 {[%clk 0:01:03.6]} 47... Rf3+ {[%clk 0:01:30]} 48. Ke2
{[%clk 0:01:04.2]} 48... Kd5 {[%clk 0:01:16.9]} 49. Rc7 {[%clk 0:01:03.9]} 49...
Rxf5 {[%clk 0:01:16.2]} 50. Rxb7 {[%clk 0:01:03]} 50... Ke5 {[%clk 0:01:15.2]}
51. Rh7 {[%clk 0:01:00.2]} 51... h5 {[%clk 0:01:14.9]} 52. Ke3 {[%clk
0:01:00.2]} 52... Rf3+ {[%clk 0:01:14.9]} 53. Ke2 {[%clk 0:01:00.7]} 53... Rh3
{[%clk 0:01:13.2]} 54. c4 {[%clk 0:00:53.4]} 54... Kd4 {[%clk 0:01:09]} 55. Rc7
{[%clk 0:00:53.5]} 55... Rh2+ {[%clk 0:01:08.5]} 56. Kf1 {[%clk 0:00:54.1]}
56... Rxb2 {[%clk 0:01:09]} 57. c5 {[%clk 0:00:54.5]} 57... Rc2 {[%clk
0:01:09.4]} 58. c6 {[%clk 0:00:55.2]} 58... Ke3 {[%clk 0:01:05]} 59. Rh7 {[%clk
0:00:49.3]} 59... Rxc6 {[%clk 0:01:03.8]} 60. Rxh5 {[%clk 0:00:50]} 60... Rc1+
{[%clk 0:01:03]} 61. Kg2 {[%clk 0:00:50.1]} 61... a4 {[%clk 0:01:03.3]} 62. Ra5
{[%clk 0:00:49.6]} 62... Rc4 {[%clk 0:01:01.4]} 63. Kg3 {[%clk 0:00:49.9]} 63...
Kd2 {[%clk 0:00:59.7]} 64. Rd5+ {[%clk 0:00:48]} 64... Ke2 {[%clk 0:00:58.1]}
65. Rb5 {[%clk 0:00:44]} 65... e3 {[%clk 0:00:57.4]} 66. Rb2+ {[%clk 0:00:43.3]}
66... Kd3 {[%clk 0:00:57.7]} 67. Kf3 {[%clk 0:00:43.5]} 67... Rc3 {[%clk
0:00:54.5]} 68. Rb6 {[%clk 0:00:41.3]} 68... Rxa3 {[%clk 0:00:54.2]} 69. Rxf6
{[%clk 0:00:41.7]} 69... Kd2 {[%clk 0:00:49.6]} 70. Re6 {[%clk 0:00:36.4]} 70...
Rd3 {[%clk 0:00:47.6]} 71. Re4 {[%clk 0:00:29.6]} 71... a3 {[%clk 0:00:47.7]}
72. Kf4 {[%clk 0:00:29.7]} 72... e2 {[%clk 0:00:46.2]} 0-1